fUSD/lending_fUSD_20241111
["ID","MTS","AMOUNT","RATE_DAILY","PERIOD"]
[341960449,1731325851110,-500.0,0.00013999,2]
[341960450,1731325851120,-540.97,0.00013999,2]
[341960451,1731325851130,-540.97,0.00013999,2]
[341960452,1731325851141,-500.0,0.00013999,2]
[341960453,1731325851151,-540.97,0.00013999,2]
[341960454,1731325851160,-500.0,0.00013999,2]
[341960455,1731325851170,-349.79146364,0.00013999,2]
[341960456,1731325851179,-540.97,0.00013999,2]
[341960457,1731325851188,-540.97,0.00013999,2]
[341960458,1731325851198,-540.97,0.00013999,2]
[341960459,1731325851207,-540.97,0.00013999,2]
[341960460,1731325851217,-540.97,0.00013999,2]
[341960461,1731325851227,-500.0,0.00013999,2]
[341960462,1731325851236,-500.0,0.00013999,2]
[341960463,1731325851246,-500.0,0.00013999,2]
[341960464,1731325851255,-500.0,0.00013999,2]
[341960465,1731325851265,-500.0,0.00013999,2]
[341960466,1731325851274,-500.0,0.00013999,2]
[341960467,1731325851284,-500.0,0.00013999,2]
[341960468,1731325851293,-500.0,0.00013999,2]
[341960469,1731325851303,-350.96,0.00013999,2]
[341960470,1731325851313,-500.0,0.00013999,2]
[341960471,1731325851322,-500.0,0.00013999,2]
[341960472,1731325851332,-500.0,0.00013999,2]
[341960473,1731325851342,-500.0,0.00013999,2]
[341960474,1731325851352,-500.0,0.00013999,2]
[341960475,1731325851362,-500.0,0.00013999,2]
[341960476,1731325851371,-500.0,0.00013999,2]
[341960477,1731325851380,-469.43,0.00013999,2]
[341960478,1731325851390,-1878.99,0.00013999,2]
[341960479,1731325851400,-1878.99,0.00013999,2]
[341960480,1731325851410,-1878.99,0.00013999,2]
[341960481,1731325851419,-1878.99,0.00013999,2]
[341960482,1731325851429,-1878.99,0.00013999,2]
[341960483,1731325851438,-1878.99,0.00013999,2]
[341960484,1731325851448,-1878.99,0.00013999,2]
[341960485,1731325851457,-1878.99,0.00013999,2]
[341960486,1731325851466,-1878.99,0.00013999,2]
[341960487,1731325851476,-1878.99,0.00013999,2]
[341960488,1731325851485,-1878.99,0.00013999,2]
[341960489,1731325851495,-1878.99,0.00013999,2]
[341960490,1731325851503,-1878.99,0.00013999,2]
[341960491,1731325851512,-1878.99,0.00013999,2]
[341960492,1731325851522,-1878.99,0.00013999,2]
[341960493,1731325851531,-1878.99,0.00013999,2]
[341960494,1731325851540,-1878.99,0.00013999,2]
[341960495,1731325851553,-401.66,0.00013999,2]
[341960496,1731325851567,-500.0,0.00013999,2]
[341960497,1731325851579,-500.0,0.00013999,2]
[341960498,1731325851590,-500.0,0.00013999,2]
[341960499,1731325851603,-629.52,0.00013999,2]
[341960500,1731325851616,-500.0,0.00013999,2]
[341960501,1731325851628,-500.0,0.00013999,2]
[341960502,1731325851641,-500.0,0.00013999,2]
[341960503,1731325851652,-500.0,0.00013999,2]
[341960504,1731325851667,-500.0,0.00013999,2]
[341960505,1731325851679,-500.0,0.00013999,2]
[341960506,1731325851691,-500.0,0.00013999,2]
[341960507,1731325851702,-500.0,0.00013999,2]
[341960508,1731325851712,-500.0,0.00013999,2]
[341960509,1731325851725,-500.0,0.00013999,2]
[341960510,1731325851738,-376.3234897,0.00013999,2]
[341960511,1731325851750,-500.0,0.00013999,2]
[341960512,1731325851763,-151.0,0.00013999,2]
[341960513,1731325851775,-500.0,0.00013999,2]
[341960514,1731325851788,-500.0,0.00013999,2]
[341960515,1731325851800,-422.81,0.00013999,2]
[341960516,1731325851812,-500.0,0.00013999,2]
[341960517,1731325851826,-500.0,0.00013999,2]
[341960518,1731325851839,-500.0,0.00013999,2]
[341960519,1731325851853,-500.0,0.00013999,2]
[341960520,1731325851872,-500.0,0.00013999,2]
[341960521,1731325851884,-500.0,0.00013999,2]
[341960522,1731325851896,-500.0,0.00013999,2]
[341960523,1731325851910,-500.0,0.00013999,2]
[341960524,1731325851922,-500.0,0.00013999,2]
[341960525,1731325851933,-500.0,0.00013999,2]
[341960526,1731325851943,-500.0,0.00013999,2]
[341960527,1731325851954,-500.0,0.00013999,2]
[341960528,1731325851968,-500.0,0.00013999,2]
[341960529,1731325851981,-500.0,0.00013999,2]
[341960530,1731325851991,-595.06177463,0.00013999,2]
[341960531,1731325852001,-1186.1,0.00013999,2]
[341960532,1731325852012,-1186.1,0.00013999,2]
[341960533,1731325852025,-1186.1,0.00013999,2]
[341960534,1731325852038,-1186.1,0.00013999,2]
[341960535,1731325852049,-1186.1,0.00013999,2]
[341960536,1731325852059,-1186.1,0.00013999,2]
[341960537,1731325852072,-1186.1,0.00013999,2]
[341960538,1731325852084,-1186.1,0.00013999,2]
[341960539,1731325852095,-1186.1,0.00013999,2]
[341960540,1731325852111,-1186.1,0.00013999,2]
[341960541,1731325852122,-1186.1,0.00013999,2]
[341960542,1731325852133,-259.0266314,0.00013999,2]
[341960543,1731325852146,-1186.1,0.00013999,2]
[341960544,1731325852157,-465.05237017,0.00013999,2]
[341960545,1731325852490,-721.04762983,0.00013999,2]
[341960546,1731325852500,-100.40237017,0.00013999,2]
[341960547,1731325852815,-500.0,0.00013996,2]
[341960548,1731325852827,-229.76638999,0.00013996,2]
[341960549,1731325853494,-270.23361001,0.00013996,2]
[341960550,1731325853504,-500.0,0.00013996,2]
[341960551,1731325853513,-25.73194359,0.00013997,2]
[341960552,1731325853537,-474.26805641,0.00013997,2]
[341960553,1731325853547,-500.0,0.00013997,2]
[341960554,1731325853557,-500.0,0.00013998,2]
[341960555,1731325853566,-500.0,0.00013998,2]
[341960556,1731325853576,-923.22294979,0.00013999,2]
[341960557,1731325853635,-162.47468004,0.00013999,2]
[341960558,1731325853644,-1186.1,0.00013999,2]
[341960559,1731325853654,-557.63668192,0.00013999,2]
[341960560,1731325853665,-628.46331808,0.00013999,2]
[341960561,1731325853675,-1186.28,0.00013999,2]
[341960562,1731325853684,-500.0,0.00013999,2]
[341960563,1731325853694,-500.0,0.00013999,2]
[341960564,1731325853703,-500.0,0.00013999,2]
[341960565,1731325853712,-500.0,0.00013999,2]
[341960566,1731325853721,-118.36431145,0.00013999,2]
[341960567,1731325853861,-381.63568855,0.00013999,2]
[341960568,1731325853870,-310.55,0.00013999,2]
[341960569,1731325853880,-500.0,0.00013999,2]
[341960570,1731325853890,-500.0,0.00013999,2]
[341960571,1731325853899,-500.0,0.00013999,2]
[341960572,1731325853909,-500.0,0.00013999,2]
[341960573,1731325853918,-500.0,0.00013999,2]
[341960574,1731325853928,-500.0,0.00013999,2]
[341960575,1731325853937,-302.866195,0.00013999,2]
[341960576,1731325853947,-500.0,0.00013999,2]
[341960577,1731325853956,-500.0,0.00013999,2]
[341960578,1731325853965,-500.0,0.00013999,2]
[341960579,1731325853975,-500.0,0.00013999,2]
[341960580,1731325853985,-493.1,0.00013999,2]
[341960581,1731325853994,-2937.97,0.00013999,2]
[341960582,1731325854004,-2937.97,0.00013999,2]
[341960583,1731325854013,-2937.97,0.00013999,2]
[341960584,1731325854022,-2937.97,0.00013999,2]
[341960585,1731325854031,-2937.97,0.00013999,2]
[341960586,1731325854040,-500.0,0.00013999,2]
[341960587,1731325854049,-2937.97,0.00013999,2]
[341960588,1731325854059,-473.22,0.00013999,2]
[341960589,1731325854072,-2937.97,0.00013999,2]
[341960590,1731325854081,-2937.97,0.00013999,2]
[341960591,1731325854091,-2937.97,0.00013999,2]
[341960592,1731325854102,-2937.97,0.00013999,2]
[341960593,1731325854111,-2937.97,0.00013999,2]
[341960594,1731325854122,-2937.97,0.00013999,2]
[341960595,1731325854132,-2937.97,0.00013999,2]
[341960596,1731325854143,-2937.97,0.00013999,2]
[341960597,1731325854153,-2937.97,0.00013999,2]
[341960598,1731325854162,-2937.97,0.00013999,2]
[341960599,1731325854172,-2938.2,0.00013999,2]
[341960600,1731325854181,-520.62,0.00013999,2]
[341960601,1731325854190,-520.62,0.00013999,2]
[341960602,1731325854199,-958.767827,0.00013999,2]
[341960603,1731325854208,-520.62,0.00013999,2]
[341960604,1731325854219,-520.62,0.00013999,2]
[341960605,1731325854228,-520.62,0.00013999,2]
[341960606,1731325854238,-520.62,0.00013999,2]
[341960607,1731325854247,-520.62,0.00013999,2]
[341960608,1731325854257,-520.62,0.00013999,2]
[341960609,1731325854266,-500.0,0.00013999,2]
[341960610,1731325854275,-520.62,0.00013999,2]
[341960611,1731325854285,-500.0,0.00013999,2]
[341960612,1731325854294,-520.62,0.00013999,2]
[341960613,1731325854304,-520.62,0.00013999,2]
[341960614,1731325854313,-500.0,0.00013999,2]
[341960615,1731325854323,-500.0,0.00013999,2]
[341960616,1731325854332,-520.62,0.00013999,2]
[341960617,1731325854342,-500.0,0.00013999,2]
[341960618,1731325854354,-520.62,0.00013999,2]
[341960619,1731325854364,-520.62,0.00013999,2]
[341960620,1731325854373,-520.62,0.00013999,2]
[341960621,1731325854383,-529.96,0.00013999,2]
[341960622,1731325854393,-520.62,0.00013999,2]
[341960623,1731325854402,-520.72286845,0.00013999,2]
[341960624,1731325854412,-958.767827,0.00013999,2]
[341960625,1731325854422,-918.848076,0.00013999,2]
[341960626,1731325854431,-500.0,0.00013999,2]
[341960627,1731325854440,-246.3,0.00013999,2]
[341960628,1731325854449,-918.848076,0.00013999,2]
[341960629,1731325854459,-500.0,0.00013999,2]
[341960630,1731325854469,-500.0,0.00013999,2]
[341960631,1731325854478,-500.0,0.00013999,2]
[341960632,1731325854488,-500.0,0.00013999,2]
[341960633,1731325854498,-500.0,0.00013999,2]
[341960634,1731325854508,-500.0,0.00013999,2]
[341960635,1731325854517,-500.0,0.00013999,2]
[341960636,1731325854528,-595.81,0.00013999,2]
[341960637,1731325854538,-500.0,0.00013999,2]
[341960638,1731325854547,-500.0,0.00013999,2]
[341960639,1731325854557,-500.0,0.00013999,2]
[341960640,1731325854566,-500.0,0.00013999,2]
[341960641,1731325854575,-500.0,0.00013999,2]
[341960642,1731325854585,-500.0,0.00013999,2]
[341960643,1731325854596,-500.0,0.00013999,2]
[341960644,1731325854607,-500.0,0.00013999,2]
[341960645,1731325854616,-500.0,0.00013999,2]
[341960646,1731325854627,-500.0,0.00013999,2]
[341960647,1731325854636,-500.0,0.00013999,2]
[341960648,1731325854646,-500.0,0.00013999,2]
[341960649,1731325854656,-500.0,0.00013999,2]
[341960650,1731325854666,-500.0,0.00013999,2]
[341960651,1731325854675,-500.0,0.00013999,2]
[341960652,1731325854685,-280.76,0.00013999,2]
[341960653,1731325854694,-326.5,0.00013999,2]
[341960654,1731325854704,-503.06,0.00013999,2]
[341960655,1731325854714,-503.06,0.00013999,2]
[341960656,1731325854723,-503.06,0.00013999,2]
[341960657,1731325854734,-503.06,0.00013999,2]
[341960658,1731325854744,-503.06,0.00013999,2]
[341960659,1731325854753,-503.06,0.00013999,2]
[341960660,1731325854763,-503.06,0.00013999,2]
[341960661,1731325854773,-503.06,0.00013999,2]
[341960662,1731325854784,-503.06,0.00013999,2]
[341960663,1731325854794,-503.06,0.00013999,2]
[341960664,1731325854804,-503.06,0.00013999,2]
[341960665,1731325854814,-503.06,0.00013999,2]
[341960666,1731325854823,-503.06,0.00013999,2]
[341960667,1731325854832,-242.785119,0.00013999,2]
[341960668,1731325854842,-503.06,0.00013999,2]
[341960669,1731325854852,-503.06,0.00013999,2]
[341960670,1731325854862,-503.06,0.00013999,2]
[341960671,1731325854872,-503.29,0.00013999,2]
[341960672,1731325854883,-242.785119,0.00013999,2]
[341960673,1731325854893,-3849.68,0.00013999,2]
[341960674,1731325854902,-3849.68,0.00013999,2]
[341960675,1731325854912,-3849.68,0.00013999,2]
[341960676,1731325854921,-3849.68,0.00013999,2]
[341960677,1731325854931,-3849.68,0.00013999,2]
[341960678,1731325854941,-3849.68,0.00013999,2]
[341960679,1731325854950,-3849.68,0.00013999,2]
[341960680,1731325854959,-3849.68,0.00013999,2]
[341960681,1731325854968,-3849.68,0.00013999,2]
[341960682,1731325854978,-3849.68,0.00013999,2]
[341960683,1731325854995,-3849.68,0.00013999,2]
[341960684,1731325855004,-3849.68,0.00013999,2]
[341960685,1731325855013,-3849.68,0.00013999,2]
[341960686,1731325855022,-3849.68,0.00013999,2]
[341960687,1731325855032,-3849.68,0.00013999,2]
[341960688,1731325855041,-500.0,0.00013999,2]
[341960689,1731325855050,-457.17466612,0.00013999,2]
[341960690,1731325855078,-42.82533388,0.00013999,2]
[341960691,1731325855088,-3849.68,0.00013999,2]
[341960692,1731325855097,-500.0,0.00013999,2]
[341960693,1731325855108,-3849.84698966,0.00013999,2]
[341960694,1731325855118,-500.0,0.00013999,2]
[341960695,1731325855128,-500.0,0.00013999,2]
[341960696,1731325855138,-500.0,0.00013999,2]
[341960697,1731325855147,-500.0,0.00013999,2]
[341960698,1731325855157,-500.0,0.00013999,2]
[341960699,1731325855168,-500.0,0.00013999,2]
[341960700,1731325855178,-500.0,0.00013999,2]
[341960701,1731325855188,-500.0,0.00013999,2]
[341960702,1731325855198,-321.28,0.00013999,2]
[341960703,1731325855208,-581.03973485,0.00013999,2]
[341960704,1731325855217,-45801.93212957,0.00014,2]
[341960705,1731325855232,-36435.68346643,0.00014,2]
[341960706,1731325855244,-409.77841138,0.00014,2]
[341960709,1731326123954,-250.0,0.00012979,2]
[341960710,1731326123979,-375.81,0.00013234,2]
[341960711,1731326124006,-1000.0,0.00013409,2]
[341960712,1731326124029,-250.0,0.00013587,2]
[341960713,1731326124052,-3056.21384,0.00013631,2]
[341960714,1731326124078,-200.0,0.000137,2]
[341960715,1731326124104,-498.0,0.0001386,2]
[341960716,1731326124127,-7298.4895,0.00013896,2]
[341960717,1731326124155,-2500.0,0.00013896,2]
[341960718,1731326124181,-1346.6066,0.00013896,2]
[341960719,1731326124206,-3224.88006,0.00013896,2]
[341960720,1731326136974,152.87,8.219e-05,2]
[341960721,1731326158070,1088.0,0.0002,90]
[341960723,1731326257261,-152.87,0.00012785,2]
[341960724,1731326257288,-155.96,0.00012979,2]
[341960725,1731326257311,-155.96,0.00013005,2]
[341960726,1731326257334,-155.96,0.00013031,2]
[341960727,1731326257356,-155.96,0.00013057,2]
[341960728,1731326257380,-155.96,0.00013083,2]
[341960729,1731326257405,-2067.33,0.00013104,2]
[341960730,1731326292621,12500.0,0.00025,120]
[341960732,1731326370881,-90.82,0.00013104,2]
[341960733,1731326370905,-155.96,0.00013109,2]
[341960734,1731326370930,-458.29,0.00013144,2]
[341960735,1731326370954,-189.18326711,0.00013253,2]
[341960736,1731326370977,-168.84,0.00013354,2]
[341960737,1731326371002,-1038.90673289,0.00013896,2]
[341960738,1731326412067,-1641.43270711,0.00013896,2]
[341960739,1731326412089,-330.9435,0.00013896,2]
[341960740,1731326412111,-150.0,0.00013899,2]
[341960741,1731326412132,-3909.00229588,0.000139,2]
[341960742,1731326412155,-432.43,0.000139,2]
[341960743,1731326412177,-373.49,0.000139,2]
[341960744,1731326412202,-332.70149701,0.000139,2]
[341960745,1731326436572,-200.0,0.000137,2]
[341960746,1731326436601,-1442.86757921,0.000139,2]
[341960747,1731326436625,-8500.0,0.000139,2]
[341960748,1731326436852,-5222.25188216,0.000139,2]
[341960749,1731326436878,-382.32514846,0.000139,2]
[341960750,1731326436906,-500.0,0.00013973,2]
[341960751,1731326436929,-500.0,0.00013995,2]
[341960752,1731326436954,-500.0,0.00013995,2]
[341960753,1731326436978,-500.0,0.00013995,2]
[341960754,1731326437001,-556.99,0.00013995,2]
[341960755,1731326437025,-268.409,0.00013995,2]
[341960756,1731326437049,-500.0,0.00013996,2]
[341960757,1731326437074,-127.15639017,0.00013996,2]
[341960759,1731326717212,14127.15,0.00013599,7]
[341960780,1731327031894,-187.9,0.00013161,2]
[341960781,1731327031904,-1000.0,0.00013201,2]
[341960782,1731327031913,-250.0,0.00013215,2]
[341960783,1731327031923,-164.14,0.00013218,2]
[341960784,1731327031932,-454.76,0.00013262,2]
[341960785,1731327031942,-300.0,0.00013898,2]
[341960786,1731327031952,-903.51394988,0.00013899,2]
[341960787,1731327032052,-674.80945012,0.00013899,2]
[341960788,1731327032062,-178.7953,0.00013899,2]
[341960789,1731327032072,-200.73982787,0.00013899,2]
[341960790,1731327032083,-2299.26017213,0.00013899,2]
[341960791,1731327032092,-300.0,0.00013899,2]
[341960792,1731327032101,-370.77,0.000139,2]
[341960793,1731327032111,-325.62,0.000139,2]
[341960794,1731327032120,-273.49200853,0.000139,2]
[341960795,1731327032130,-631.8361592,0.000139,2]
[341960796,1731327032319,-7.14287987,0.000139,2]
[341960797,1731327032330,-701.26254607,0.000139,2]
[341960798,1731327032342,-3680.65185265,0.000139,2]
[341960805,1731327038167,-327.85873605,0.000139,2]
[341960806,1731327038176,-1137.44126395,0.000139,2]
[341960807,1731327038187,-2188.6,0.000139,2]
[341960808,1731327038275,-350.18925082,0.000139,2]
[341960809,1731327038380,-564.39849965,0.000139,2]
[341960812,1731327040012,-350.3686897,0.000139,2]
[341960813,1731327040022,-824.4409563,0.000139,2]
[341960814,1731327040033,-443.49464716,0.000139,2]
[341960815,1731327040042,-438.55249293,0.000139,2]
[341960816,1731327040179,-829.38311053,0.000139,2]
[341960817,1731327040189,-1267.93560346,0.000139,2]
[341960818,1731327040198,-1267.93560346,0.000139,2]
[341960819,1731327040207,-1267.93560346,0.000139,2]
[341960820,1731327040217,-1267.93560346,0.000139,2]
[341960821,1731327040225,-1267.93560346,0.000139,2]
[341960822,1731327040235,-1267.93560346,0.000139,2]
[341960823,1731327040244,-1267.93560346,0.000139,2]
[341960824,1731327040253,-1267.93560346,0.000139,2]
[341960825,1731327040262,-535.13206179,0.000139,2]
[341960826,1731327040276,-732.80354167,0.000139,2]
[341960827,1731327040285,-1267.93560346,0.000139,2]
[341960828,1731327040295,-1267.93560346,0.000139,2]
[341960829,1731327040304,-1267.93560346,0.000139,2]
[341960830,1731327040313,-1267.93560346,0.000139,2]
[341960831,1731327040323,-1267.93560346,0.000139,2]
[341960832,1731327040333,-1267.93560346,0.000139,2]
[341960833,1731327040538,-1267.93560346,0.000139,2]
[341960834,1731327040547,-1267.93560346,0.000139,2]
[341960835,1731327040556,-1267.93,0.000139,2]
[341960836,1731327040566,-1901.9034052,0.000139,2]
[341960837,1731327040575,-1901.9034052,0.000139,2]
[341960838,1731327040584,-1901.9034052,0.000139,2]
[341960839,1731327040594,-1901.9034052,0.000139,2]
[341960840,1731327040603,-1901.9034052,0.000139,2]
[341960841,1731327040613,-1901.9034052,0.000139,2]
[341960842,1731327040622,-1901.9034052,0.000139,2]
[341960843,1731327040631,-1901.9034052,0.000139,2]
[341960844,1731327040640,-1901.9034052,0.000139,2]
[341960845,1731327040649,-1901.9034052,0.000139,2]
[341960846,1731327040658,-1901.9034052,0.000139,2]
[341960847,1731327040667,-1901.9034052,0.000139,2]
[341960848,1731327040676,-1901.9034052,0.000139,2]
[341960849,1731327040686,-1901.9034052,0.000139,2]
[341960850,1731327040695,-1268.30262676,0.000139,2]
[341960852,1731327043223,-633.60077844,0.000139,2]
[341960853,1731327043233,-639.63068506,0.000139,2]
[341960876,1731327046170,-1262.27272014,0.000139,2]
[341960877,1731327046180,-1901.9034052,0.000139,2]
[341960878,1731327046190,-1901.9034052,0.000139,2]
[341960879,1731327046200,-1901.9034052,0.000139,2]
[341960880,1731327046209,-1901.9,0.000139,2]
[341960881,1731327046219,-224.61502293,0.000139,2]
[341960882,1731327046229,-224.61502293,0.000139,2]
[341960883,1731327046238,-224.61502293,0.000139,2]
[341960884,1731327046248,-224.61502293,0.000139,2]
[341960885,1731327046258,-224.61502293,0.000139,2]
[341960886,1731327046267,-224.61502293,0.000139,2]
[341960887,1731327046277,-224.61502293,0.000139,2]
[341960888,1731327046286,-224.61502293,0.000139,2]
[341960889,1731327046296,-224.61502293,0.000139,2]
[341960890,1731327046306,-23.33185696,0.000139,2]
[341960891,1731327046318,-201.28316597,0.000139,2]
[341960892,1731327046328,-224.61502293,0.000139,2]
[341960893,1731327046338,-224.61502293,0.000139,2]
[341960894,1731327046348,-224.61502293,0.000139,2]
[341960895,1731327046357,-224.61502293,0.000139,2]
[341960896,1731327046367,-224.61502293,0.000139,2]
[341960897,1731327046376,-224.61502293,0.000139,2]
[341960898,1731327046386,-224.61502293,0.000139,2]
[341960899,1731327046396,-224.61502293,0.000139,2]
[341960900,1731327046405,-224.61502293,0.000139,2]
[341960901,1731327046414,-224.61,0.000139,2]
[341960902,1731327046423,-336.9225344,0.000139,2]
[341960903,1731327046434,-336.9225344,0.000139,2]
[341960904,1731327046446,-336.9225344,0.000139,2]
[341960905,1731327046458,-336.9225344,0.000139,2]
[341960906,1731327046468,-336.9225344,0.000139,2]
[341960907,1731327046479,-336.9225344,0.000139,2]
[341960908,1731327046489,-336.9225344,0.000139,2]
[341960909,1731327046499,-336.9225344,0.000139,2]
[341960910,1731327046510,-336.9225344,0.000139,2]
[341960911,1731327046523,-336.9225344,0.000139,2]
[341960912,1731327046535,-336.9225344,0.000139,2]
[341960913,1731327046545,-336.9225344,0.000139,2]
[341960914,1731327046555,-336.9225344,0.000139,2]
[341960915,1731327046565,-336.9225344,0.000139,2]
[341960916,1731327046575,-336.9225344,0.000139,2]
[341960917,1731327046585,-336.9225344,0.000139,2]
[341960918,1731327046594,-336.9225344,0.000139,2]
[341960919,1731327046605,-336.9225344,0.000139,2]
[341960920,1731327046614,-336.9225344,0.000139,2]
[341960921,1731327046624,-336.92,0.000139,2]
[341960922,1731327046634,-283.96870688,0.000139,2]
[341960923,1731327046643,-283.96870688,0.000139,2]
[341960924,1731327046654,-283.96870688,0.000139,2]
[341960925,1731327046664,-283.96870688,0.000139,2]
[341960926,1731327046674,-283.96870688,0.000139,2]
[341960927,1731327046684,-283.96870688,0.000139,2]
[341960928,1731327046693,-283.96870688,0.000139,2]
[341960929,1731327046703,-283.96870688,0.000139,2]
[341960930,1731327046711,-283.96870688,0.000139,2]
[341960931,1731327046719,-283.96870688,0.000139,2]
[341960932,1731327046729,-48.3824859,0.000139,2]
[341960933,1731327046742,-235.58622098,0.000139,2]
[341960934,1731327046752,-283.96870688,0.000139,2]
[341960935,1731327046762,-283.96870688,0.000139,2]
[341960936,1731327046771,-283.96870688,0.000139,2]
[341960937,1731327046783,-283.96870688,0.000139,2]
[341960938,1731327046793,-283.96870688,0.000139,2]
[341960939,1731327046803,-283.96870688,0.000139,2]
[341960940,1731327046813,-283.96870688,0.000139,2]
[341960941,1731327046822,-283.96870688,0.000139,2]
[341960942,1731327046831,-283.96,0.000139,2]
[341960943,1731327046841,-425.95306032,0.000139,2]
[341960944,1731327046853,-425.95306032,0.000139,2]
[341960945,1731327046866,-425.95306032,0.000139,2]
[341960946,1731327046879,-425.95306032,0.000139,2]
[341960947,1731327046894,-425.95306032,0.000139,2]
[341960948,1731327046907,-425.95306032,0.000139,2]
[341960949,1731327046920,-425.95306032,0.000139,2]
[341960950,1731327046932,-425.95306032,0.000139,2]
[341960951,1731327046943,-425.95306032,0.000139,2]
[341960952,1731327046954,-425.95306032,0.000139,2]
[341960953,1731327046967,-425.95306032,0.000139,2]
[341960954,1731327046978,-425.95306032,0.000139,2]
[341960955,1731327046990,-425.95306032,0.000139,2]
[341960956,1731327047001,-425.95306032,0.000139,2]
[341960957,1731327047017,-425.95306032,0.000139,2]
[341960958,1731327047030,-425.95306032,0.000139,2]
[341960959,1731327047045,-425.95306032,0.000139,2]
[341960960,1731327047059,-425.95306032,0.000139,2]
[341960961,1731327047074,-424.51823172,0.000139,2]
[341960962,1731327047088,-1.4348286,0.000139,2]
[341960963,1731327047099,-425.95,0.000139,2]
[341960964,1731327047110,-454.76,0.00013925,2]
[341960965,1731327047121,-178.13,0.00013989,2]
[341960966,1731327047131,-178.13,0.00013989,2]
[341960967,1731327047141,-178.13,0.00013989,2]
[341960968,1731327047152,-150.0,0.00013994,2]
[341960969,1731327047163,-500.0,0.00013995,2]
[341960970,1731327047174,-241.72,0.00013995,2]
[341960971,1731327047186,-372.84360983,0.00013995,2]
[341960972,1731327047197,-500.0,0.00013995,2]
[341960973,1731327047208,-500.0,0.00013995,2]
[341960974,1731327047219,-444.32,0.00013995,2]
[341960975,1731327047230,-500.0,0.00013996,2]
[341960976,1731327047242,-616.56,0.00013996,2]
[341960977,1731327047254,-500.0,0.00013996,2]
[341960978,1731327047266,-500.0,0.00013996,2]
[341960979,1731327047277,-1977.12156157,0.00013997,2]
[341960981,1731327134174,178.35,8.219e-05,2]
[341960984,1731327269193,94595.0,0.00024,60]
[341960985,1731327297010,110.99435694,0.00010736,2]
[341960986,1731327297046,452.94564306,0.00010736,2]
[341960995,1731327715466,363.79905609,0.00012,2]
[341961003,1731327862127,178.35,8.219e-05,2]
[341961024,1731328125526,212.86377984,0.0001,2]
[341961026,1731328132298,255.15997513,0.000107,2]
[341961078,1731328232458,-250.0,0.0001248,2]
[341961079,1731328232468,-1000.0,0.00012561,2]
[341961080,1731328232477,-187.9,0.0001257,2]
[341961081,1731328232487,-366.63,0.00012604,2]
[341961082,1731328232497,-3822.54404977,0.00012652,2]
[341961083,1731328232542,-927.42935523,0.00012652,2]
[341961084,1731328232551,-272.85,0.00012652,2]
[341961085,1731328232562,-400.0,0.00013,2]
[341961086,1731328232571,-174.72,0.00013201,2]
[341961087,1731328232580,-300.0,0.00013219,2]
[341961088,1731328232589,-300.0,0.00013219,2]
[341961089,1731328232599,-871.22,0.0001322,2]
[341961090,1731328232609,-150.99,0.0001322,2]
[341961091,1731328232618,-871.22,0.00013227,2]
[341961092,1731328232628,-871.22,0.00013234,2]
[341961093,1731328232637,-871.22,0.00013241,2]
[341961094,1731328232646,-871.22,0.00013248,2]